[Event "*** SCC Grand Prix: Titled Tuesday Blitz"]
[Site "Chess.com"]
[Date "2020.06.09"]
[Round "4"]
[White "CyberneticLion"]
[Black "chesslh19"]
[Result "0-1"]
[WhiteElo "2393"]
[BlackElo "2125"]
[TimeControl "180+1"]
[EndTime "9:40:26 PDT"]
[Termination "chesslh19 won by resignation"]

1. e4 {[%clk 0:03:00.7]} 1... c5 {[%clk 0:02:56.7]} 2. c4 {[%clk 0:03:00.3]}
2... Nc6 {[%clk 0:02:56]} 3. Nf3 {[%clk 0:02:56.3]} 3... e6 {[%clk 0:02:52.7]}
4. d4 {[%clk 0:02:55.3]} 4... cxd4 {[%clk 0:02:52.8]} 5. Nxd4 {[%clk 0:02:56.2]}
5... Nf6 {[%clk 0:02:50.8]} 6. Nxc6 {[%clk 0:02:50.2]} 6... bxc6 {[%clk
0:02:45.4]} 7. e5 {[%clk 0:02:48.7]} 7... Qa5+ {[%clk 0:02:41.5]} 8. Nc3 {[%clk
0:02:45.3]} 8... Qxe5+ {[%clk 0:02:41.3]} 9. Be2 {[%clk 0:02:45.7]} 9... Bc5
{[%clk 0:02:17.1]} 10. O-O {[%clk 0:02:44.5]} 10... O-O {[%clk 0:02:16.3]} 11.
Rb1 {[%clk 0:02:40]} 11... a5 {[%clk 0:02:03.4]} 12. Bf3 {[%clk 0:02:32]} 12...
d5 {[%clk 0:01:48.9]} 13. Na4 {[%clk 0:02:27]} 13... Ba7 {[%clk 0:01:41.8]} 14.
c5 {[%clk 0:02:21.5]} 14... Qc7 {[%clk 0:01:40]} 15. Bg5 {[%clk 0:02:11]} 15...
Nd7 {[%clk 0:01:36.6]} 16. Be7 {[%clk 0:02:09.5]} 16... Re8 {[%clk 0:01:35.4]}
17. Bd6 {[%clk 0:02:09.1]} 17... Qd8 {[%clk 0:01:33.2]} 18. Re1 {[%clk
0:02:03.2]} 18... e5 {[%clk 0:01:20.2]} 19. Bg4 {[%clk 0:02:00.8]} 19... e4
{[%clk 0:01:11.3]} 20. Qd4 {[%clk 0:01:56.1]} 20... Ba6 {[%clk 0:00:53.6]} 21.
a3 {[%clk 0:01:44.3]} 21... Bb5 {[%clk 0:00:53.4]} 22. Nc3 {[%clk 0:01:41.4]}
22... Bd3 {[%clk 0:00:47.5]} 23. Rbd1 {[%clk 0:01:35.4]} 23... Qf6 {[%clk
0:00:45.1]} 24. Qa4 {[%clk 0:01:10.6]} 24... Nxc5 {[%clk 0:00:40.8]} 25. Qxc6
{[%clk 0:01:08]} 25... Nb7 {[%clk 0:00:29.7]} 26. Qxb7 {[%clk 0:00:57.9]} 26...
Bxf2+ {[%clk 0:00:28.9]} 27. Kh1 {[%clk 0:00:57.2]} 27... Qxd6 {[%clk
0:00:28.9]} 28. Qxd5 {[%clk 0:00:42.4]} 28... Qxd5 {[%clk 0:00:24.3]} 29. Nxd5
{[%clk 0:00:43.3]} 29... Bxe1 {[%clk 0:00:24.7]} 30. Nc7 {[%clk 0:00:43.7]}
30... Bf2 {[%clk 0:00:19.2]} 31. Nxa8 {[%clk 0:00:40.2]} 31... Rxa8 {[%clk
0:00:18.7]} 32. g3 {[%clk 0:00:30.5]} 32... g6 {[%clk 0:00:18.8]} 33. Kg2 {[%clk
0:00:30.7]} 33... Bd4 {[%clk 0:00:18.2]} 34. Rd2 {[%clk 0:00:29]} 34... f5
{[%clk 0:00:18]} 35. Be2 {[%clk 0:00:29.2]} 35... Bxe2 {[%clk 0:00:17.7]} 36.
Rxd4 {[%clk 0:00:30]} 36... Bd3 {[%clk 0:00:17.4]} 37. Kf2 {[%clk 0:00:30.3]}
37... Rb8 {[%clk 0:00:17.6]} 38. b4 {[%clk 0:00:30.3]} 38... axb4 {[%clk
0:00:18]} 39. axb4 {[%clk 0:00:31.2]} 39... Kf7 {[%clk 0:00:17.8]} 40. Rd7+
{[%clk 0:00:29.1]} 40... Ke6 {[%clk 0:00:17.2]} 41. Rxh7 {[%clk 0:00:28.9]}
41... Rxb4 {[%clk 0:00:17.1]} 42. Ke3 {[%clk 0:00:28.3]} 42... Rb2 {[%clk
0:00:17]} 43. h4 {[%clk 0:00:27.4]} 43... Re2+ {[%clk 0:00:16.8]} 44. Kf4 {[%clk
0:00:27.8]} 44... Rf2+ {[%clk 0:00:16.5]} 45. Kg5 {[%clk 0:00:28.2]} 45... Rg2
{[%clk 0:00:16.7]} 46. Kf4 {[%clk 0:00:27.6]} 46... Rf2+ {[%clk 0:00:14.2]} 47.
Kg5 {[%clk 0:00:27.3]} 47... Rf3 {[%clk 0:00:14.6]} 48. g4 {[%clk 0:00:20.8]}
48... Rg3 {[%clk 0:00:14.2]} 49. Kxg6 {[%clk 0:00:21.2]} 49... Rxg4+ {[%clk
0:00:14.2]} 50. Kh5 {[%clk 0:00:21.5]} 50... Rg1 {[%clk 0:00:13.6]} 51. Rh6+
{[%clk 0:00:17.9]} 51... Ke5 {[%clk 0:00:13.5]} 52. Rh8 {[%clk 0:00:11.8]} 52...
e3 {[%clk 0:00:13.2]} 53. Re8+ {[%clk 0:00:12]} 53... Kf4 {[%clk 0:00:12.1]} 54.
Kh6 {[%clk 0:00:12.2]} 54... Be4 {[%clk 0:00:12]} 55. Kh7 {[%clk 0:00:05]} 55...
e2 {[%clk 0:00:11.9]} 56. h5 {[%clk 0:00:05.6]} 56... e1=Q {[%clk 0:00:12.1]}
57. h6 {[%clk 0:00:06.5]} 57... Qg3 {[%clk 0:00:12.2]} 58. Kh8 {[%clk
0:00:04.6]} 58... Qg6 {[%clk 0:00:12.2]} 59. Rxe4+ {[%clk 0:00:03.7]} 59... fxe4
{[%clk 0:00:11.8]} 0-1

[Event "*** SCC Grand Prix: Titled Tuesday Blitz"]
[Site "Chess.com"]
[Date "2020.06.09"]
[Round "4"]
[White "maciek_92"]
[Black "Benjoneliere44"]
[Result "0-1"]
[WhiteElo "2663"]
[BlackElo "2488"]
[TimeControl "180+1"]
[EndTime "9:40:28 PDT"]
[Termination "Benjoneliere44 won by resignation"]

1. e4 {[%clk 0:03:00.9]} 1... c5 {[%clk 0:02:58.8]} 2. Nf3 {[%clk 0:03:01.5]}
2... d6 {[%clk 0:02:58.8]} 3. d4 {[%clk 0:03:01.9]} 3... cxd4 {[%clk 0:02:59.7]}
4. Nxd4 {[%clk 0:03:02.8]} 4... Nf6 {[%clk 0:03:00]} 5. Nc3 {[%clk 0:03:03.3]}
5... g6 {[%clk 0:02:56.1]} 6. Be3 {[%clk 0:03:01.9]} 6... Bg7 {[%clk 0:02:55.2]}
7. f3 {[%clk 0:03:02.5]} 7... O-O {[%clk 0:02:53.6]} 8. Qd2 {[%clk 0:03:03.1]}
8... Nc6 {[%clk 0:02:50.6]} 9. Bc4 {[%clk 0:03:03.6]} 9... Bd7 {[%clk
0:02:46.8]} 10. h4 {[%clk 0:03:00.6]} 10... h5 {[%clk 0:02:44.9]} 11. O-O-O
{[%clk 0:02:59.5]} 11... Ne5 {[%clk 0:02:43.2]} 12. Be2 {[%clk 0:02:58.7]} 12...
Rc8 {[%clk 0:02:41.9]} 13. Kb1 {[%clk 0:02:57.7]} 13... Nc4 {[%clk 0:02:38.4]}
14. Bxc4 {[%clk 0:02:57.5]} 14... Rxc4 {[%clk 0:02:39.3]} 15. Nde2 {[%clk
0:02:33.9]} 15... b5 {[%clk 0:02:35]} 16. Bh6 {[%clk 0:02:26.9]} 16... Qa5
{[%clk 0:02:31]} 17. Nd5 {[%clk 0:02:21.3]} 17... Qxd2 {[%clk 0:02:23.4]} 18.
Nxe7+ {[%clk 0:01:30.5]} 18... Kh7 {[%clk 0:02:21.6]} 19. Bxd2 {[%clk
0:01:31.4]} 19... Nxe4 {[%clk 0:02:21.7]} 20. fxe4 {[%clk 0:01:14.8]} 20... Rxe4
{[%clk 0:02:16.1]} 21. Nc3 {[%clk 0:00:53.4]} 21... Rxe7 {[%clk 0:02:15.1]} 22.
Nd5 {[%clk 0:00:51.3]} 22... Re2 {[%clk 0:02:05]} 23. Nf4 {[%clk 0:00:50.7]}
23... Re4 {[%clk 0:02:03]} 24. g3 {[%clk 0:00:49]} 24... Bf5 {[%clk 0:01:54.9]}
25. Rh2 {[%clk 0:00:39.7]} 25... Rc8 {[%clk 0:01:45.6]} 26. Nd3 {[%clk
0:00:21.4]} 26... Rg4 {[%clk 0:01:39]} 27. Bf4 {[%clk 0:00:20.9]} 27... Bxd3
{[%clk 0:01:32.3]} 28. Rxd3 {[%clk 0:00:21.8]} 28... Be5 {[%clk 0:01:32.3]} 29.
Bxe5 {[%clk 0:00:13.8]} 29... dxe5 {[%clk 0:01:33.2]} 30. Rd7 {[%clk 0:00:14.3]}
30... Rxg3 {[%clk 0:01:26.1]} 31. Rxf7+ {[%clk 0:00:12.6]} 31... Kg8 {[%clk
0:01:25.3]} 32. Rf1 {[%clk 0:00:13.2]} 32... Rf8 {[%clk 0:01:24.7]} 33. Re1
{[%clk 0:00:12.8]} 33... Re3 {[%clk 0:01:15.2]} 34. Rg1 {[%clk 0:00:12.3]} 34...
Kg7 {[%clk 0:01:00.2]} 35. Kc1 {[%clk 0:00:12.2]} 35... Ref3 {[%clk 0:00:56.4]}
36. Rgg2 {[%clk 0:00:07.9]} 36... e4 {[%clk 0:00:53.2]} 37. Re2 {[%clk
0:00:04.8]} 37... e3 {[%clk 0:00:51.8]} 38. c3 {[%clk 0:00:05.4]} 38... Rf2
{[%clk 0:00:44.6]} 39. Kd1 {[%clk 0:00:05.7]} 39... Rxh2 {[%clk 0:00:38.1]} 40.
Rxh2 {[%clk 0:00:06.1]} 40... g5 {[%clk 0:00:35.7]} 41. Ke2 {[%clk 0:00:03.3]}
41... g4 {[%clk 0:00:17.8]} 42. Kxe3 {[%clk 0:00:03.2]} 42... Rf3+ {[%clk
0:00:14.7]} 43. Ke4 {[%clk 0:00:03.3]} 43... Kf6 {[%clk 0:00:14.7]} 44. a3
{[%clk 0:00:02]} 44... a5 {[%clk 0:00:14]} 45. Kd4 {[%clk 0:00:02.2]} 45... g3
{[%clk 0:00:11.5]} 46. Rg2 {[%clk 0:00:02.1]} 46... Kf5 {[%clk 0:00:11.8]} 47.
Kc5 {[%clk 0:00:02.4]} 47... Kg4 {[%clk 0:00:12.2]} 48. Kxb5 {[%clk 0:00:02.9]}
48... Kxh4 {[%clk 0:00:10.9]} 49. Kxa5 {[%clk 0:00:02.8]} 49... Kg4 {[%clk
0:00:11]} 50. c4 {[%clk 0:00:02.9]} 50... h4 {[%clk 0:00:11.2]} 51. c5 {[%clk
0:00:03.5]} 51... h3 {[%clk 0:00:11.8]} 52. Rg1 {[%clk 0:00:03.9]} 52... h2
{[%clk 0:00:11.8]} 53. Rc1 {[%clk 0:00:03.2]} 53... g2 {[%clk 0:00:11.7]} 54. c6
{[%clk 0:00:04.1]} 54... g1=Q {[%clk 0:00:11.8]} 55. Rc4+ {[%clk 0:00:03.9]}
55... Kg3 {[%clk 0:00:11.7]} 56. c7 {[%clk 0:00:04.8]} 56... Rf8 {[%clk
0:00:11.2]} 57. Rc3+ {[%clk 0:00:04.3]} 57... Kg4 {[%clk 0:00:10.6]} 0-1

[Event "*** SCC Grand Prix: Titled Tuesday Blitz"]
[Site "Chess.com"]
[Date "2020.06.09"]
[Round "4"]
[White "MFBerna"]
[Black "j_coca"]
[Result "0-1"]
[WhiteElo "2407"]
[BlackElo "2205"]
[TimeControl "180+1"]
[EndTime "9:40:29 PDT"]
[Termination "j_coca won by resignation"]

1. e4 {[%clk 0:03:00.9]} 1... g6 {[%clk 0:02:59.6]} 2. d4 {[%clk 0:03:00.6]}
2... Bg7 {[%clk 0:02:51.6]} 3. Nf3 {[%clk 0:03:00.7]} 3... d6 {[%clk 0:02:51.4]}
4. Nc3 {[%clk 0:03:00.9]} 4... Nc6 {[%clk 0:02:50.6]} 5. h3 {[%clk 0:03:00]}
5... Nf6 {[%clk 0:02:45.6]} 6. Be2 {[%clk 0:02:56.7]} 6... O-O {[%clk
0:02:45.2]} 7. O-O {[%clk 0:02:56.9]} 7... a6 {[%clk 0:02:41.2]} 8. a4 {[%clk
0:02:52.7]} 8... Qe8 {[%clk 0:02:41]} 9. e5 {[%clk 0:02:39.7]} 9... dxe5 {[%clk
0:02:36]} 10. dxe5 {[%clk 0:02:40.6]} 10... Nd7 {[%clk 0:02:33.4]} 11. e6 {[%clk
0:02:39.8]} 11... fxe6 {[%clk 0:02:32.6]} 12. Be3 {[%clk 0:02:13.6]} 12... Nde5
{[%clk 0:02:29.1]} 13. Nxe5 {[%clk 0:02:12.7]} 13... Nxe5 {[%clk 0:02:28.1]} 14.
Ne4 {[%clk 0:02:07.9]} 14... c6 {[%clk 0:02:25.5]} 15. Nc5 {[%clk 0:01:39.2]}
15... Nf7 {[%clk 0:02:03.8]} 16. Bc4 {[%clk 0:01:23.9]} 16... e5 {[%clk
0:01:53.2]} 17. c3 {[%clk 0:01:05.5]} 17... Kh8 {[%clk 0:01:51.7]} 18. a5 {[%clk
0:01:04.4]} 18... Nd6 {[%clk 0:01:48.4]} 19. Be2 {[%clk 0:01:02.6]} 19... Qf7
{[%clk 0:01:42.5]} 20. Qd2 {[%clk 0:00:35.8]} 20... Nf5 {[%clk 0:01:28.4]} 21.
Ne4 {[%clk 0:00:29.3]} 21... Qd5 {[%clk 0:01:26.7]} 22. Qc2 {[%clk 0:00:24.5]}
22... Nxe3 {[%clk 0:01:21.9]} 23. fxe3 {[%clk 0:00:25.4]} 23... Bf5 {[%clk
0:01:20]} 24. Bd3 {[%clk 0:00:21.6]} 24... Rad8 {[%clk 0:01:18.9]} 25. Rad1
{[%clk 0:00:14.2]} 25... Bh6 {[%clk 0:01:18.6]} 26. Kh1 {[%clk 0:00:08.6]} 26...
Qxa5 {[%clk 0:01:09.9]} 27. b4 {[%clk 0:00:04.1]} 27... Qc7 {[%clk 0:01:02.5]}
28. Nc5 {[%clk 0:00:04.3]} 28... Bxd3 {[%clk 0:00:59.4]} 29. Rxf8+ {[%clk
0:00:05.2]} 29... Rxf8 {[%clk 0:00:57.5]} 30. Qxd3 {[%clk 0:00:05.3]} 30... Qc8
{[%clk 0:00:54]} 31. Qe4 {[%clk 0:00:05.1]} 31... Bg7 {[%clk 0:00:48.2]} 32. Nd3
{[%clk 0:00:05.2]} 32... Qf5 {[%clk 0:00:46.4]} 33. Nc5 {[%clk 0:00:04.3]} 33...
Qf2 {[%clk 0:00:37.7]} 34. Ne6 {[%clk 0:00:02]} 34... Rf5 {[%clk 0:00:32.1]} 35.
Rd8+ {[%clk 0:00:02]} 35... Bf8 {[%clk 0:00:31.6]} 36. Rxf8+ {[%clk 0:00:02.3]}
36... Rxf8 {[%clk 0:00:30.5]} 37. Nxf8 {[%clk 0:00:02]} 37... Qxf8 {[%clk
0:00:29.1]} 38. Qxe5+ {[%clk 0:00:02.9]} 38... Kg8 {[%clk 0:00:21.1]} 39. Qc7
{[%clk 0:00:02.9]} 39... Qa8 {[%clk 0:00:19.1]} 40. Kh2 {[%clk 0:00:03.1]} 40...
Kf7 {[%clk 0:00:18.3]} 41. Kg3 {[%clk 0:00:03.4]} 41... Ke6 {[%clk 0:00:17.1]}
42. Qf4 {[%clk 0:00:03.6]} 42... Qd8 {[%clk 0:00:08.4]} 43. Kf3 {[%clk
0:00:03.6]} 43... Qd1+ {[%clk 0:00:05.3]} 44. Kg3 {[%clk 0:00:04.1]} 44... Qd6
{[%clk 0:00:04.7]} 45. Kf3 {[%clk 0:00:04]} 45... Qxf4+ {[%clk 0:00:04.5]} 46.
Kxf4 {[%clk 0:00:04.9]} 46... Kd5 {[%clk 0:00:04.5]} 47. Kg5 {[%clk 0:00:05.4]}
47... Kc4 {[%clk 0:00:03.6]} 48. Kh6 {[%clk 0:00:05.8]} 48... Kxc3 {[%clk
0:00:04.5]} 49. Kxh7 {[%clk 0:00:05.9]} 49... Kxb4 {[%clk 0:00:04.9]} 50. Kxg6
{[%clk 0:00:06.2]} 50... a5 {[%clk 0:00:05.8]} 51. h4 {[%clk 0:00:06.8]} 51...
a4 {[%clk 0:00:06.7]} 52. h5 {[%clk 0:00:07.4]} 52... a3 {[%clk 0:00:07.6]} 53.
h6 {[%clk 0:00:07.6]} 53... a2 {[%clk 0:00:08.5]} 54. g4 {[%clk 0:00:05.8]}
54... a1=Q {[%clk 0:00:09.4]} 55. g5 {[%clk 0:00:06.7]} 55... Qh8 {[%clk
0:00:08.9]} 56. Kh5 {[%clk 0:00:07.1]} 56... Kc4 {[%clk 0:00:07.1]} 57. g6
{[%clk 0:00:08]} 57... Kd5 {[%clk 0:00:07.4]} 58. g7 {[%clk 0:00:08.9]} 58...
Qh7 {[%clk 0:00:07.4]} 59. Kg5 {[%clk 0:00:09.4]} 59... Ke6 {[%clk 0:00:07.6]}
60. Kf4 {[%clk 0:00:09.7]} 60... Qxh6+ {[%clk 0:00:06.9]} 0-1

[Event "*** SCC Grand Prix: Titled Tuesday Blitz"]
[Site "Chess.com"]
[Date "2020.06.09"]
[Round "4"]
[White "Margarita2907"]
[Black "mfwagnerpeixoto"]
[Result "0-1"]
[WhiteElo "2041"]
[BlackElo "2277"]
[TimeControl "180+1"]
[EndTime "9:40:29 PDT"]
[Termination "mfwagnerpeixoto won on time"]

1. e4 {[%clk 0:03:00.9]} 1... c5 {[%clk 0:03:00.9]} 2. Nf3 {[%clk 0:02:59.8]}
2... Nc6 {[%clk 0:03:01.4]} 3. d4 {[%clk 0:02:59.3]} 3... cxd4 {[%clk
0:03:02.3]} 4. Nxd4 {[%clk 0:02:59.2]} 4... Nf6 {[%clk 0:03:01.6]} 5. Nc3 {[%clk
0:02:57.1]} 5... d6 {[%clk 0:03:01.4]} 6. Be2 {[%clk 0:02:50.6]} 6... e5 {[%clk
0:02:58.9]} 7. Nb3 {[%clk 0:02:48.1]} 7... Be7 {[%clk 0:02:56.9]} 8. O-O {[%clk
0:02:46.8]} 8... O-O {[%clk 0:02:56.7]} 9. Be3 {[%clk 0:02:41]} 9... a5 {[%clk
0:02:55]} 10. a4 {[%clk 0:02:39.4]} 10... Be6 {[%clk 0:02:50.1]} 11. Nd2 {[%clk
0:02:02.3]} 11... d5 {[%clk 0:02:46.2]} 12. exd5 {[%clk 0:01:59.3]} 12... Nxd5
{[%clk 0:02:47.1]} 13. Nxd5 {[%clk 0:01:58.3]} 13... Bxd5 {[%clk 0:02:46.7]} 14.
Nc4 {[%clk 0:01:57.5]} 14... Bxc4 {[%clk 0:02:22.6]} 15. Bxc4 {[%clk 0:01:55.6]}
15... Rc8 {[%clk 0:02:17.3]} 16. Bd3 {[%clk 0:01:37.3]} 16... f5 {[%clk
0:02:03.5]} 17. c3 {[%clk 0:01:30.5]} 17... Kh8 {[%clk 0:01:59.7]} 18. Qe2
{[%clk 0:01:15.3]} 18... e4 {[%clk 0:01:58]} 19. Bb5 {[%clk 0:01:10.3]} 19...
Bd6 {[%clk 0:01:41.3]} 20. Rad1 {[%clk 0:01:01.1]} 20... Qe7 {[%clk 0:01:40.3]}
21. Bb6 {[%clk 0:00:48]} 21... f4 {[%clk 0:01:33.4]} 22. f3 {[%clk 0:00:28.9]}
22... Bc5+ {[%clk 0:01:23.6]} 23. Bxc5 {[%clk 0:00:27]} 23... Qxc5+ {[%clk
0:01:24.5]} 24. Kh1 {[%clk 0:00:25.7]} 24... e3 {[%clk 0:01:21.3]} 25. Rd7
{[%clk 0:00:24.5]} 25... b6 {[%clk 0:01:02.1]} 26. Rfd1 {[%clk 0:00:22.1]} 26...
Ne5 {[%clk 0:00:54.1]} 27. R7d5 {[%clk 0:00:21.9]} 27... Qc7 {[%clk 0:00:54]}
28. R5d4 {[%clk 0:00:18.8]} 28... Rcd8 {[%clk 0:00:48.4]} 29. Re4 {[%clk
0:00:17.7]} 29... Rxd1+ {[%clk 0:00:45.3]} 30. Qxd1 {[%clk 0:00:17.5]} 30... Rd8
{[%clk 0:00:36.4]} 31. Rd4 {[%clk 0:00:16.7]} 31... Rxd4 {[%clk 0:00:25.8]} 32.
cxd4 {[%clk 0:00:17.6]} 32... Nf7 {[%clk 0:00:19.7]} 33. h3 {[%clk 0:00:15.4]}
33... h6 {[%clk 0:00:19.4]} 34. d5 {[%clk 0:00:15.3]} 34... Qd6 {[%clk
0:00:19.1]} 35. Bc6 {[%clk 0:00:14.4]} 35... Ne5 {[%clk 0:00:18.9]} 36. Qc2
{[%clk 0:00:12.6]} 36... Nxc6 {[%clk 0:00:15.9]} 37. dxc6 {[%clk 0:00:10.6]}
37... e2 {[%clk 0:00:15.8]} 38. Qxe2 {[%clk 0:00:09.5]} 38... Qxc6 {[%clk
0:00:15.7]} 39. Qe5 {[%clk 0:00:08.1]} 39... Qxa4 {[%clk 0:00:13.1]} 40. Qe7
{[%clk 0:00:05.3]} 40... Qd1+ {[%clk 0:00:12]} 41. Kh2 {[%clk 0:00:04.8]} 41...
Qb3 {[%clk 0:00:11.5]} 42. Qf8+ {[%clk 0:00:03.8]} 42... Qg8 {[%clk 0:00:10.7]}
43. Qxf4 {[%clk 0:00:03.7]} 43... Qc8 {[%clk 0:00:09.5]} 44. Qd6 {[%clk
0:00:03.1]} 44... b5 {[%clk 0:00:09]} 45. Qd5 {[%clk 0:00:02.7]} 45... Qb8+
{[%clk 0:00:07]} 46. Kg1 {[%clk 0:00:02.2]} 46... a4 {[%clk 0:00:07.6]} 47. Qc5
{[%clk 0:00:01.1]} 47... Qb7 {[%clk 0:00:07]} 48. h4 {[%clk 0:00:01.6]} 48... b4
{[%clk 0:00:07.1]} 49. Kh1 {[%clk 0:00:02.2]} 49... a3 {[%clk 0:00:07.3]} 50.
bxa3 {[%clk 0:00:02.3]} 50... b3 {[%clk 0:00:07.8]} 51. Qf8+ {[%clk 0:00:01.2]}
51... Kh7 {[%clk 0:00:06.9]} 52. Qf5+ {[%clk 0:00:01.8]} 52... Kg8 {[%clk
0:00:07.2]} 0-1

[Event "*** SCC Grand Prix: Titled Tuesday Blitz"]
[Site "Chess.com"]
[Date "2020.06.09"]
[Round "4"]
[White "wonderfultime"]
[Black "Gajuchess"]
[Result "1-0"]
[WhiteElo "2994"]
[BlackElo "2786"]
[TimeControl "180+1"]
[EndTime "9:40:31 PDT"]
[Termination "wonderfultime won by resignation"]

1. d4 {[%clk 0:02:58.6]} 1... Nf6 {[%clk 0:02:58.4]} 2. Nf3 {[%clk 0:02:58.8]}
2... d5 {[%clk 0:02:58.5]} 3. Bf4 {[%clk 0:02:59.1]} 3... e6 {[%clk 0:02:58.9]}
4. e3 {[%clk 0:02:59.4]} 4... Bd6 {[%clk 0:02:59.8]} 5. Bg3 {[%clk 0:02:59.8]}
5... O-O {[%clk 0:02:59.6]} 6. c4 {[%clk 0:03:00.3]} 6... c5 {[%clk 0:02:56.8]}
7. Nc3 {[%clk 0:03:00.9]} 7... cxd4 {[%clk 0:02:53.3]} 8. Nxd4 {[%clk
0:03:00.1]} 8... Bb4 {[%clk 0:02:50.9]} 9. Bd3 {[%clk 0:02:51.2]} 9... dxc4
{[%clk 0:02:49.6]} 10. Bxc4 {[%clk 0:02:52.1]} 10... Ne4 {[%clk 0:02:49.4]} 11.
Qc2 {[%clk 0:02:45.6]} 11... Nxc3 {[%clk 0:02:49.2]} 12. bxc3 {[%clk 0:02:45.6]}
12... Be7 {[%clk 0:02:50.1]} 13. O-O {[%clk 0:02:43.9]} 13... Nd7 {[%clk
0:02:45.3]} 14. Rfd1 {[%clk 0:02:43.1]} 14... a6 {[%clk 0:02:12.3]} 15. Rab1
{[%clk 0:02:26.3]} 15... Qe8 {[%clk 0:02:05.8]} 16. Be2 {[%clk 0:02:17.7]} 16...
Bf6 {[%clk 0:01:55.5]} 17. Bf3 {[%clk 0:02:14.5]} 17... Ra7 {[%clk 0:01:55.9]}
18. c4 {[%clk 0:02:06.4]} 18... Ne5 {[%clk 0:01:55]} 19. Be4 {[%clk 0:02:03.1]}
19... g6 {[%clk 0:01:53.5]} 20. c5 {[%clk 0:02:03.5]} 20... h5 {[%clk
0:01:46.7]} 21. h3 {[%clk 0:02:00.9]} 21... h4 {[%clk 0:01:46.6]} 22. Bh2 {[%clk
0:01:57.9]} 22... Qe7 {[%clk 0:01:45.9]} 23. c6 {[%clk 0:01:35.3]} 23... b5
{[%clk 0:01:38.2]} 24. Nf3 {[%clk 0:01:30.3]} 24... Nc4 {[%clk 0:01:36.4]} 25.
Rbc1 {[%clk 0:01:23.9]} 25... e5 {[%clk 0:01:34.4]} 26. Bd5 {[%clk 0:01:15.1]}
26... Be6 {[%clk 0:01:24.9]} 27. Qe4 {[%clk 0:01:02.6]} 27... Bf5 {[%clk
0:01:23.7]} 28. Rxc4 {[%clk 0:00:56]} 28... Bxe4 {[%clk 0:01:23.5]} 29. Rxe4
{[%clk 0:00:56.9]} 29... Re8 {[%clk 0:01:15.8]} 30. Nxe5 {[%clk 0:00:54.7]}
30... Bxe5 {[%clk 0:01:03]} 31. Rxe5 {[%clk 0:00:51.1]} 31... Qxe5 {[%clk
0:00:56.8]} 32. Bxe5 {[%clk 0:00:52]} 32... Rxe5 {[%clk 0:00:57.2]} 33. Kf1
{[%clk 0:00:49.1]} 33... Kf8 {[%clk 0:00:55.4]} 34. Ke2 {[%clk 0:00:48.6]} 34...
g5 {[%clk 0:00:43.3]} 35. e4 {[%clk 0:00:43.9]} 35... f5 {[%clk 0:00:41.8]} 36.
f3 {[%clk 0:00:41.5]} 36... Ke7 {[%clk 0:00:27.6]} 37. Ke3 {[%clk 0:00:41.3]}
37... Kd6 {[%clk 0:00:23.5]} 38. Kd4 {[%clk 0:00:31.8]} 38... b4 {[%clk
0:00:20.6]} 39. Rc1 {[%clk 0:00:31.5]} 39... a5 {[%clk 0:00:20.3]} 40. c7 {[%clk
0:00:14.4]} 40... Rxd5+ {[%clk 0:00:08]} 41. exd5 {[%clk 0:00:14.3]} 41... Rxc7
{[%clk 0:00:08.9]} 42. Rxc7 {[%clk 0:00:14.7]} 42... Kxc7 {[%clk 0:00:09.7]} 43.
Kc5 {[%clk 0:00:15.6]} 43... Kd7 {[%clk 0:00:09.6]} 44. Kb5 {[%clk 0:00:15.9]}
44... Kd6 {[%clk 0:00:09.9]} 45. Kxa5 {[%clk 0:00:16.3]} 45... Kxd5 {[%clk
0:00:10.8]} 46. Kxb4 {[%clk 0:00:16.8]} 46... Kd4 {[%clk 0:00:08.8]} 47. a4
{[%clk 0:00:17.2]} 47... Ke3 {[%clk 0:00:09.7]} 48. a5 {[%clk 0:00:17.5]} 48...
Kf2 {[%clk 0:00:10.6]} 49. a6 {[%clk 0:00:18.4]} 49... Kxg2 {[%clk 0:00:11.5]}
50. a7 {[%clk 0:00:19.3]} 50... Kxh3 {[%clk 0:00:11.7]} 51. a8=Q {[%clk
0:00:20.2]} 51... Kg3 {[%clk 0:00:10.2]} 52. Qd8 {[%clk 0:00:17.1]} 52... g4
{[%clk 0:00:08.9]} 53. fxg4 {[%clk 0:00:15.8]} 53... fxg4 {[%clk 0:00:09.8]} 54.
Qd3+ {[%clk 0:00:15.8]} 54... Kg2 {[%clk 0:00:10.3]} 55. Qe2+ {[%clk 0:00:16]}
55... Kh3 {[%clk 0:00:10.1]} 56. Qf1+ {[%clk 0:00:15.9]} 56... Kh2 {[%clk
0:00:10]} 57. Qf2+ {[%clk 0:00:16]} 57... Kh3 {[%clk 0:00:10.5]} 58. Qg1 {[%clk
0:00:11]} 58... g3 {[%clk 0:00:11.4]} 59. Kc3 {[%clk 0:00:11.5]} 59... g2 {[%clk
0:00:11.3]} 60. Kd3 {[%clk 0:00:10.4]} 60... Kg3 {[%clk 0:00:12.2]} 61. Ke2
{[%clk 0:00:10.8]} 61... h3 {[%clk 0:00:13.1]} 62. Qf2+ {[%clk 0:00:11]} 62...
Kg4 {[%clk 0:00:12.7]} 63. Qf3+ {[%clk 0:00:09.4]} 63... Kh4 {[%clk 0:00:13.3]}
64. Kf2 {[%clk 0:00:10]} 1-0